Cogmind - Beta 10.2 @@@ ROGUE MODE // 2021.10.26 @ 20:37:35 Player: Wakanaka Result: Destroyed by S-10 Pest with Light Assault Rifle Performance ------------- Evolutions (0) 0 Regions Visited (2) 400 Robots Destroyed (20) 100 Value Destroyed (463) 463 Prototype IDs (0) 0 Alien Tech Used (0) 0 Bonus (0) 0 TOTAL SCORE: 963 Bonus ------- None Cogmind --------- Core Integrity 0/250 Matter 300/300 Energy 150/250 System Corruption 0% Temperature Cool (48) Movement Rolling (120) Ox2 Location -10/Mines Parts ------- > --- POWER (1) -------- Ion Engine > --- PROPULSION (2) --- Compact Wheel > --- UTILITY (2) ------ High-capacity Storage Unit Seismic Analyzer > --- WEAPON (2) ------- Light EM Pulse Cannon > --- INVENTORY (12) --- Hover Unit Improved Hover Unit Improved Hover Unit Small Storage Unit Improved Terrain Scanner ECM Suite Medium Armor Plating Plasma Cutter Peak State ------------ > --- POWER ------------ Light Ion Engine > --- PROPULSION ------- Improved Hover Unit Improved Hover Unit > --- UTILITY ---------- Improved Terrain Scanner Seismic Analyzer > --- WEAPON ----------- EM Pulse Gun EM Pulse Gun > --- INVENTORY -------- Small Storage Unit Medium Armor Plating Light EM Pulse Cannon Plasma Cutter [Rating: 10] Favorites ----------- Power Ion Engine Engine Ion Engine Propulsion Compact Wheel Leg Aluminum Leg Wheel Compact Wheel Hover Unit Improved Hover Unit Utility Seismic Analyzer Device Improved Terrain Scanner Storage High-capacity Storage Unit Processor Seismic Analyzer Weapon Light EM Pulse Cannon Energy Gun EM Pulse Gun Energy Cannon Light EM Pulse Cannon Build | -11 -10 -10 ------- Run | Scr Mat Min Slots Evolved . | . . . Power . | . . . Propulsion . | . . . Utility . | . . . Weapon . | . . . Parts Attached 26 | 10 15 1 Power 4 | 1 3 . Engine 4 | 1 3 . Core . | . . . Reactor . | . . . Propulsion 12 | 3 9 . Treads . | . . . Leg 1 | . 1 . Wheel 6 | 3 3 . Hover 5 | . 5 . Flight . | . . . Utility 5 | 3 2 . Device 1 | 1 . . Storage 3 | 1 2 . Processor 1 | 1 . . Hackware . | . . . Protection . | . . . Artifact . | . . . Weapon 5 | 3 1 1 Energy Gun 3 | 3 . . Energy Cannon 2 | . 1 1 Ballistic Gun . | . . . Ballistic Cannon . | . . . Launcher . | . . . Special Weapon . | . . . Impact Weapon . | . . . Slashing Weapon . | . . . Piercing Weapon . | . . . Special Melee Weapon . | . . . Unidentified Prototypes . | . . . Parts Lost 10 | . 8 2 Power 2 | . 2 . Propulsion 5 | . 4 1 Utility . | . . . Weapon 3 | . 2 1 Highest Loss Streak 4 | . 4 2 Average Slot Usage (%) 84 | . 84 71 Engine 13 | . 13 14 Wheel 15 | . 15 14 Hover 9 | . 9 . Storage 13 | . 13 14 Processor 14 | . 14 14 Energy Gun 5 | . 5 . Energy Cannon 11 | . 11 14 Naked Turns . | . . . Heaviest Build 45 | 11 41 45 Greatest Support 32 | 32 32 32 Greatest Overweight (x) 5 | . 5 2 Average Overweight (x) . | . . 1 Largest Inventory Capacity 12 | 6 12 12 Average Capacity 9 | 4 10 12 Most Carried 10 | 4 10 8 Average Carried 7 | 2 7 8 Final Capacity 12 | 4 12 12 Final Carried 9 | 3 9 8 Class Distribution -------------------- 100% | Mutant Dominant Class ---------------- Mutant | -10/Materials Mutant | -10/Mines Resources | -11 -10 -10 ----------- Run | Scr Mat Min Matter Collected 415 | 216 199 . Remotely . | . . . Salvage Created 687 | 14 653 20 Parts 34 | 4 29 1 Haulers Intercepted 2 | . 2 . Recyclers Shooed . | . . . Parts Field Recycled . | . . . Retrieved Matter . | . . . Parts Self-Destructed . | . . . Prevented . | . . . Kills | -11 -10 -10 ------- Run | Scr Mat Min Combat Hostiles Destroyed 12 | . 11 1 Guns 3 | . 3 . Cannons 6 | . 5 1 Classes Destroyed 6 | 1 5 . Tunneler 1 | 1 . . Hauler 2 | . 2 . Operator 2 | . 2 . Watcher 3 | . 3 . Swarmer 3 | . 2 1 Grunt 9 | . 9 . Best Kill Streak 2 | 1 2 1 Combat Bots Only 2 | . 2 1 Max Kills in Single Turn 1 | 1 1 1 Gunslinging . | . . . Exploded . | . . . Melee . | . . . Uniques/NPCs Destroyed . | . . . Combat | -11 -10 -10 -------- Run | Scr Mat Min Damage Taken 903 | . 739 164 Core 254 | . 185 69 Absorbed by Shields . | . . . Core Remaining (%) 100 | 100 . . Volleys Fired 65 | 1 60 4 Largest 2 | 2 2 1 Hottest 96 | 80 96 56 Shots Fired 80 | 2 74 4 Gun 30 | 2 28 . Cannon 50 | . 46 4 Launcher . | . . . Special . | . . . Kinetic . | . . . Thermal . | . . . Explosive . | . . . Electromagnetic 80 | 2 74 4 Robot Hit Streak 7 | 1 7 1 Robot Miss Streak 5 | . 5 2 Penetration Max . | . . . Secondary Targets 2 | . 2 . Max Gunslinging Chain 1 | . 1 . Shots Hit Robots 48 | 1 45 2 Core Hits 21 | 1 19 1 Critical Hits . | . . . Critical Kills . | . . . Critical Parts Destroyed . | . . . Melee Attacks . | . . . Impact . | . . . Slashing . | . . . Piercing . | . . . Sneak Attacks . | . . . Combat Hostiles . | . . . Follow-up Attacks . | . . . Damage Inflicted 1338 | 15 1287 36 Guns 239 | 15 224 . Cannons 934 | . 898 36 Explosions 165 | . 165 . Melee . | . . . Ramming . | . . . Kinetic . | . . . Thermal 165 | . 165 . Explosive . | . . . Electromagnetic 1173 | 15 1122 36 Impact . | . . . Slashing . | . . . Piercing . | . . . Highest Corruption . | . . . Average Corruption . | . . . Corruption Purged . | . . . Overload Shots . | . . . Overflow Damage 42 | . 42 . Projectiles 42 | . 42 . Explosions . | . . . Melee . | . . . Knockbacks . | . . . Impact . | . . . Kinetic . | . . . Secondary . | . . . Self-Inflicted Damage . | . . . Shots . | . . . Rammed . | . . . Targets Rammed . | . . . Kicked . | . . . Crushed . | . . . Highest Temperature 209 | 18 209 48 Average Temperature 61 | 12 63 28 Received Heat Transfer 429 | . 378 51 Effects 3 | . 3 . Interference 3 | . 3 . Siege Activations . | . . . Robots Corrupted 5 | . 5 . Combat Hostiles 3 | . 3 . Parts Fried 10 | . 9 1 Impact Corruptions . | . . . Robots Melted . | . . . Combat Hostiles . | . . . Parts Melted . | . . . Heat Transferred 300 | . 300 . Parts Sabotaged . | . . . Parts Stolen . | . . . Parts Stripped . | . . . Power Chain Reactions 3 | . 3 . Missiles Intercepted . | . . . Alert | -11 -10 -10 ------- Run | Scr Mat Min Peak Influence 350 | 5 350 72 Initial 72 | . 3 72 Average 169 | 2 184 54 Maximum Alert Level 1 | . 1 . Low Security (%) 66 | 100 63 100 Level 1 33 | . 36 . Level 2 . | . . . Level 3 . | . . . Level 4 . | . . . Level 5 . | . . . High Security . | . . . Max Security . | . . . Squads Dispatched 3 | . 3 . Investigation 2 | . 2 . Extermination . | . . . Reinforcement 1 | . 1 . Assault . | . . . Garrison . | . . . Intercept . | . . . Construction Impeded . | . . . Haulers Reinforced . | . . . Stealth | -11 -10 -10 --------- Run | Scr Mat Min Distress Signals 3 | . 3 . Communications Jammed . | . . . Distress Signals . | . . . Times Spotted 31 | . 26 5 Peak Tracking Total 6 | . 6 5 Tactical Retreats 6 | . 6 . Traps | -11 -10 -10 ------- Run | Scr Mat Min Traps Triggered . | . . . Indirectly . | . . . Trap Hack Attempts . | . . . Triggered . | . . . Disarmed . | . . . Reprogrammed . | . . . Reused . | . . . Traps Extracted . | . . . Installed . | . . . Triggered . | . . . Machines | -11 -10 -10 ---------- Run | Scr Mat Min Machines Disabled 1 | . 1 . Max in Single Turn 1 | . 1 . Machines Sabotaged . | . . . Garrisons Compromised . | . . . Overloaded Fab Kills . | . . . Fab Network Shutdowns . | . . . Hacking | -11 -10 -10 --------- Run | Scr Mat Min Machines Accessed 10 | . 10 . Terminals 7 | . 7 . Fabricators . | . . . Repair Stations 1 | . 1 . Recycling Units 2 | . 2 . Scanalyzers . | . . . Garrison Access . | . . . Total Hacks 23 | . 23 . Successful 9 | . 9 . Failed 14 | . 14 . Catastrophic 4 | . 4 . Database Lockouts . | . . . Manual 13 | . 13 . Terminals 17 | . 17 . Fabricators . | . . . Repair Stations 4 | . 4 . Recycling Units 2 | . 2 . Scanalyzers . | . . . Garrison Access . | . . . Terminal Hacks 5 | . 5 . Record 3 | . 3 . Branch Access Points 1 | . 1 . Locate Traps 1 | . 1 . Fabricator Hacks . | . . . Repair Station Hacks 2 | . 2 . Scan Component 1 | . 1 . Repair 1 | . 1 . Recycling Unit Hacks 2 | . 2 . Report Inventory 2 | . 2 . Scanalyzer . | . . . Garrison Access Hacks . | . . . Unauthorized Hacks . | . . . Terminals . | . . . Fabricators . | . . . Repair Stations . | . . . Recycling Units . | . . . Scanalyzers . | . . . Garrison Access . | . . . Data Cores Recovered 1 | . 1 . Used . | . . . Hacking Detections 10 | . 10 . Full Trace Events 2 | . 2 . Feedback Events . | . . . Feedback Blocked . | . . . Robot Schematics Acquired . | . . . Robots Built . | . . . Matter . | . . . Time . | . . . Total Robot Build Rating . | . . . Part Schematics Acquired . | . . . Parts Built . | . . . Matter . | . . . Time . | . . . Total Part Build Rating . | . . . Parts Repaired 1 | . 1 . Time 32 | . 32 . Parts Recycled . | . . . Recycled Matter . | . . . Retrieved Matter . | . . . Retrieved Components . | . . . Parts Scanalyzed . | . . . Part Schematics Acquired . | . . . Parts Damaged . | . . . Bothacking | -11 -10 -10 ------------ Run | Scr Mat Min Used RIF Installer . | . . . Robots Hacked . | . . . Non-combat . | . . . Combat . | . . . Robot Hacks Applied . | . . . Relay Couplers Released . | . . . Robots Rewired . | . . . Allies Hacked . | . . . Hacks Repelled . | . . . Allies | -11 -10 -10 -------- Run | Scr Mat Min Total Allies . | . . . Largest Group . | . . . Highest-Rated Group . | . . . Highest-Rated Ally . | . . . Total Orders . | . . . Ally Attacks . | . . . Total Damage . | . . . Kills . | . . . Allies Corrupted . | . . . Allies Melted . | . . . Intel | -11 -10 -10 ------- Run | Scr Mat Min Robot Analysis Total . | . . . Derelict Logs Recovered 1 | . . 1 Drone Launches . | . . . Drone Recoveries . | . . . Exploration | -11 -10 -10 ------------- Run | Scr Mat Min Turns Passed 1182 | 76 1077 29 Spaces Moved 854 | 54 782 18 Core 1 | 1 . . Treads . | . . . Legs 11 | . 11 . Wheels 565 | 53 494 18 Hover 277 | . 277 . Flight . | . . . Fastest Speed 50 | 50 56 110 Average Speed 102 | 93 102 118 Slowest Speed 360 | 100 360 120 Overloaded Moves . | . . . Propulsion Burnouts . | . . . Robots Hopped . | . . . Cave-ins Triggered . | . . . Exploration Rate (%) 35 | 4 92 9 Regions Visited 2 Branch Regions 1 Pre-discovered Areas 1 | . . 1 Known Exits Taken 1 | . 1 . Unknown Exits Taken 1 | 1 . . Scrap Searched 1 | . . 1 Spaces Dug . | . . . Terrain Destroyed 8 | . 8 . Melee . | . . . Projectile . | . . . AOE 8 | . 8 . Terrain Rammed . | . . . Walls Destroyed . | . . . Machines Disabled . | . . . Actions | -11 -10 -10 --------- Run | Scr Mat Min Total 1081 | 76 982 23 Wait 102 | . 102 . Move 852 | 53 781 18 Hop . | . . . Pick Up 28 | 10 18 . Fast Attach 3 | 1 2 . Attach 16 | 7 8 1 Detach 1 | 1 . . Swap 7 | 2 5 . Drop 7 | 1 6 . Fire 65 | 1 60 4 Melee . | . . . Ram . | . . . Kick . | . . . Crush . | . . . Escape Stasis . | . . . Rewire . | . . . Trap . | . . . Miscellaneous . | . . . Route ------- -11/Scrapyard -10/Materials (discovered 4 exits: [*Mat x3] / *Min) -10/Mines History --------- Turn | Location | Event 26 | -11/Scrapyard | Discovered new exit (range 15) 77 | -11/Scrapyard | Entered Materials 326 | -10/Materials | Lost 4 parts (1p1n2w) 336 | -10/Materials | Build established: Mutant 445 | -10/Materials | Core integrity fell below 50% 714 | -10/Materials | Repaired Imp. Hover Unit 723 | -10/Materials | Discovered new exit (range 3) 800 | -10/Materials | Discovered new exit (range 16) 808 | -10/Materials | Identified exit to Mines 1015 | -10/Materials | Discovered new exit (range 16) 1154 | -10/Materials | Entered Mines 1156 | -10/Mines | Core integrity fell below 20% 1171 | -10/Mines | Learned location of Storage (-8) 1178 | -10/Mines | Met a Derelict bent on vengeance 1183 | -10/Mines | Destroyed by S-10 Pest with Light Assault Rifle Last Messages --------------- 01092_ Acquired 10 matter. 01102_ K-01 Serf cleans the Terminal. 01119_ Connecting with Terminal... 01119_ ALERT: Suspicious activity at Terminal M004. Dispatching Investigation squad. LOCATION=MINES GOAL=ESCAPE Something is scanning the area. 01156_ Lgt. EM Pulse Cannon destroyed. 01158_ Com. Wheel destroyed. 01163_ Seismic Survey Station disabled. 01171_ Acquired derelict log, extracted data. World map updated: -8/Storage. 01176_ Searching scrap... 01176_ Found Med. Laser. 01176_ Found Lgt. Ion Engine. 01176_ Found Sml. Laser. 01176_ Found 20 Matter. 01183_ Lgt. Ion Engine fried. 01183_ S-10 Pest destroyed. Map ----- +----------------------------------------------------+ | ?????????????????????????????????????????????????? | | ?????????????????????????????????????????????????? | | ?????????????????????????????????????????????????? | | ?????????????????????????????????????????????????? | | ?????????????????????????????????????????????????? | | ?????????????????????????????????????????????????? | | ?????????????????????????????????????????????????? | | ?????????????????????????????????????????????????? | | ?????????????????????????????????????????????????? | | ?????????????????????????????????????????????????? | | ???????????????????????? #???????????????????????? | | ???????????????????????? ???????????????????????? | | ???????????????????????? ??????????????????????? | | ???????????????????????? ??????????????????????? | | ???????????????????????? ??????????????????????? | | ???????????????????????? ??????????????????????? | | ???????????????????????? #??????????????????????? | | ???????????????????????? ##?????????????????????? | | ???????????????????????? ###???????????????????? | | ????????????????????????# #???????????????????? | | ???????????????????????## ????????????????????? | | ???????????????????????# ?????????????????????? | | ????###########????????# ?????????????????????? | | ????# #????????# ??????????????????????? | | ????# """ """ #????????# [#??????????????????????? | | ????# """ """ #????????#[@#??????????????????????? | | ????# """ """ #????????#[*## #???????????????????? | | ????# ##########%[ #???????????????????? | | ????# " " s ## #???????????????????? | | ????# """ ####### #####??#???????????????????? | | ????# """ #?????# #??????????????????????????? | | ????# #?????# #??????????????????????????? | | ????###########?????# #??????????????????????????? | | ????????????????????# #??????????????????????????? | | ????????????????????# #??????????????????????????? | | ????????????????????# ??????????????????????????? | | ???????????????????? ??????????????????????????? | | ???????????????????? ??????????????????????????? | | ???????????????????? ??????????????????????????? | | ???????????????????? ??????????????????????????? | | ???????????????????? ??????????????????????????? | | ???????????????????? ??????????????????????????? | | ???????????????????? ??????????????????????????? | | ???????????????????? #??????????????????????????? | | ?????????????????????????????????????????????????? | | ?????????????????????????????????????????????????? | | ?????????????????????????????????????????????????? | | ?????????????????????????????????????????????????? | | ?????????????????????????????????????????????????? | | ?????????????????????????????????????????????????? | +----------------------------------------------------+ Best States ------------- Heat Dissipation 25 Energy Generation 10 Energy Capacity 250 Matter Stores 300 Matter Capacity 300 Sight Range 16 Terrain Scan Range 16 Terrain Scan Density 60 Evasion (%) 53 Item Schematics ----------------- None Robot Schematics ------------------ None Fabricated ------------ Nothing Alien Tech Used ----------------- None Achievements -------------- None Challenges ------------ None Game ------ Seed SingularityTransportTrap Manual? 0 Play Time 00:21:34 Cumulative 39.4 hours Start 2021.10.26 @ 20:16:08 End 2021.10.26 @ 20:37:35 Sessions 1 Manual Loads 0 Difficulty Rogue Special Mode None Game No. 48 Rogue 48 Adventurer 0 Explorer 0 Win Type - Total 0 Types 0/0/0/0/0/0/0/0/0 Lore% 24 Gallery% 33 Achievement% 24 Wizard Run 0 Options --------- ASCII 0 Keyboard 0 Movement Mouse Keybinds 0 Fullscreen 1 Font 18/SmallcapsGlow Map View 76x50 Tactical HUD 1 Map Filters NONE Filters NONE Steam 1 RUN: 257687b5-d812-43cb-a5e4-8edbee5a5a35